[Event "51st Rilton Cup 2023-24"]
[Site "Stockholm"]
[Date "2023.12.30"]
[Round "4.17"]
[White "Pasti, Aron"]
[Black "Dotzer, Lukas"]
[Result "0-1"]
[ECO "B93"]
[WhiteElo "2410"]
[BlackElo "2338"]
[Annotator "ChessBase"]
[PlyCount "76"]
[EventDate "2023.12.27"]
[EventType "swiss"]
[EventCountry "SWE"]
[SourceTitle "playchess.com"]
[Source "ChessBase"]
[SourceQuality "1"]
[TimeControl "40/5400+30:1800+30"]

1. e4 {[%emt 0:00:08]} c5 {[%emt 0:00:04]} 2. Nf3 {[%emt 0:00:04]} d6 {[%emt 0:00:05]} 3. d4 {[%emt 0:00:04]} cxd4 {[%emt 0:00:08]} 4. Nxd4 {[%emt 0:00:03]} Nf6 {[%emt 0:00:11]} 5. Nc3 {[%emt 0:00:06]} a6 {[%emt 0:00:06]} 6. Bd3 {[%emt 0:00:12]} g6 {[%emt 0:06:42]} 7. f4 {[%emt 0:05:45]} Bg7 {[%emt 0:02:07]} 8. Qe2 {[%emt 0:05:58]} O-O {[%emt 0:03:28]} 9. Be3 {[%emt 0:03:11]} Nc6 {[%emt 0:07:18]} 10. Nxc6 {[%emt 0:04:54]} bxc6 {[%emt 0:00:24]} 11. h3 {[%emt 0:03:11]} Rb8 {[%emt 0:06:28]} 12. Nd1 {[%emt 0:07:00]} e5 {[%emt 0:07:18]} 13. fxe5 {[%emt 0:13:45]} Nh5 {[%emt 0:05:58]} 14. Qf3 {[%emt 0:00:03]} Bxe5 {[%emt 0:13:09]} 15. O-O {[%emt 0:02:13]} Qh4 {[%emt 0:13:48]} 16. Bf2 {[%emt 0:06:10]} Ng3 {[%emt 0:07:04]} 17. Re1 {[%emt 0:10:01]} Qh5 {[%emt 0:13:43]} 18. Qe3 {[%emt 0:12:27]} f5 {[%emt 0:06:13]} 19. Bc4+ {[%emt 0:03:15]} Kh8 {[%emt 0:00:53]} 20. Bxg3 {[%emt 0:03:30]} f4 {[%emt 0:00:06]} 21. Qf2 {[%emt 0:01:32]} Bxh3 {[%emt 0:02:18]} 22. Bh2 {[%emt 0:04:36]} Bg4 {[%emt 0:01:43]} 23. c3 {[%emt 0:05:38]} g5 {[%emt 0:01:00]} 24. Rf1 {[%emt 0:04:06]} Rf6 {[%emt 0:00:55]} 25. Qd2 {[%emt 0:02:21]} Rh6 {[%emt 0:00:35]} 26. g3 {[%emt 0:01:13]} fxg3 {[%emt 0:00:15]} 27. Ne3 {[%emt 0:00:01]} gxh2+ {[%emt 0:00:28]} 28. Kh1 {[%emt 0:00:01]} Bf3+ {[%emt 0:00:28]} 29. Ng2 {[%emt 0:00:17]} Qg4 {[%emt 0:00:51]} 30. Rf2 {[%emt 0:00:24]} Rh3 {[%emt 0:00:45]} 31. Be2 {[%emt 0:00:53]} Bxe2 {[%emt 0:00:31]} 32. Qxe2 {[%emt 0:00:31]} Qxe2 {[%emt 0:00:11]} 33. Rxe2 {[%emt 0:00:06]} Rf8 {[%emt 0:00:29]} 34. Ne3 {[%emt 0:00:04]} Rhf3 {[%emt 0:00:34]} 35. Nf5 {[%emt 0:00:01]} d5 {[%emt 0:00:35]} 36. Rae1 {[%emt 0:00:21]} Bc7 {[%emt 0:00:54]} 37. Rd2 {[%emt 0:01:17]} dxe4 {[%emt 0:00:20]} 38. Rd7 {[%emt 0:00:00]} Be5 {[%emt 0:00:39]} 0-1

[Event "51st Rilton Cup 2023-24"]
[Site "Stockholm"]
[Date "2023.12.30"]
[Round "4.18"]
[White "Socko, Monika"]
[Black "Dragicevic, Drazen"]
[Result "1/2-1/2"]
[ECO "B31"]
[WhiteElo "2396"]
[BlackElo "2322"]
[Annotator "RC"]
[PlyCount "96"]
[EventDate "2023.12.27"]
[EventType "swiss"]
[EventCountry "SWE"]
[SourceTitle "playchess.com"]
[Source "ChessBase"]
[SourceQuality "1"]
[TimeControl "40/5400+30:1800+30"]

1. e4 {[%emt 0:00:35]} c5 {[%emt 0:01:34]} 2. Nf3 {[%emt 0:00:05]} Nc6 {[%emt 0:00:18]} 3. Bb5 {[%emt 0:00:20]} g6 {[%emt 0:01:44]} 4. Bxc6 {[%emt 0:00:05]} bxc6 {[%emt 0:00:06]} 5. O-O {[%emt 0:00:15]} Bg7 {[%emt 0:00:06]} 6. Re1 {[%emt 0:00:16]} Nh6 {[%emt 0:01:04]} 7. c3 {[%emt 0:00:17]} O-O {[%emt 0:04:54]} 8. d4 {[%emt 0:00:08]} cxd4 {[%emt 0:00:17]} 9. cxd4 {[%emt 0:00:03]} f6 {[%emt 0:05:41]} 10. h3 {[%emt 0:08:31]} Nf7 {[%emt 0:08:27]} 11. Nc3 {[%emt 0:04:22]} d6 {[%emt 0:12:15]} 12. Be3 {[%emt 0:06:19]} Rb8 {[%emt 0:05:14]} 13. Qd2 {[%emt 0:03:14]} Rb7 {[%emt 0:03:55]} 14. Rac1 {[%emt 0:01:19]} Bd7 {[%emt 0:03:01]} 15. b3 {[%emt 0:01:04]} Re8 {[%emt 0:02:37]} 16. Qe2 {[%emt 0:03:59]} Qa5 {[%emt 0:01:56]} 17. Nd2 {[%emt 0:04:06]} f5 {[%emt 0:18:31]} 18. Nc4 {[%emt 0:04:36]} Qa6 {[%emt 0:01:28]} 19. Qd2 {[%emt 0:02:07]} fxe4 {[%emt 0:05:15]} 20. Nxe4 {[%emt 0:01:07]} Qb5 {[%emt 0:03:56]} 21. Bf4 {[%emt 0:09:21]} Qd5 {[%emt 0:06:20]} 22. Rcd1 {[%emt 0:02:57]} h6 {[%emt 0:05:42]} 23. Qe3 {[%emt 0:04:54]} g5 {[%emt 0:01:01]} 24. Bh2 {[%emt 0:00:39]} Qf5 {[%emt 0:01:29]} 25. Ng3 {[%emt 0:04:41]} Qg6 {[%emt 0:00:18]} 26. d5 {[%emt 0:00:26]} c5 {[%emt 0:03:17]} 27. Qe2 {[%emt 0:08:08]} Bb5 {[%emt 0:00:22]} 28. Ne4 {[%emt 0:03:44]} Kf8 {[%emt 0:01:41]} 29. Qd3 {[%emt 0:03:42]} Bxc4 {[%emt 0:01:36]} 30. bxc4 {[%emt 0:00:04]} Rb2 {[%emt 0:00:25]} 31. Nxc5 {[%emt 0:08:01]} Qxd3 {[%emt 0:00:04]} 32. Ne6+ {[%emt 0:00:42]} Kg8 {[%emt 0:00:02]} 33. Rxd3 {[%emt 0:00:04]} Bf6 {[%emt 0:01:05]} 34. Ra3 {[%emt 0:00:49]} Rc8 {[%emt 0:00:31]} 35. Ra4 {[%emt 0:05:42]} Rc2 {[%emt 0:01:08]} 36. g4 {[%emt 0:00:40]} R8xc4 {[%emt 0:00:24]} 37. Rxa7 {[%emt 0:00:05]} Rb2 {[%emt 0:00:40]} 38. Bg3 {[%emt 0:01:02]} Rcc2 {[%emt 0:00:14]} 39. a4 {[%emt 0:00:17]} Be5 {[%emt 0:00:37]} 40. Re3 {[%emt 0:08:20]} Bxg3 {[%emt 0:00:16]} 41. Rxg3 {[%emt 0:30:07]} Rxf2 {[%emt 0:08:16]} 42. Rxe7 {[%emt 0:00:00]} Ne5 {[%emt 0:03:14]} 43. Re8+ {[%emt 0:00:00]} Kh7 {[%emt 0:00:17]} 44. Nf8+ {[%emt 0:00:00]} Kg7 {[%emt 0:01:17]} 45. Ne6+ {[%emt 0:00:00]} Kg6 {[%emt 0:02:19]} 46. Rg8+ {[%emt 0:00:00]} Kh7 {[%emt 0:00:27]} 47. Rf8 {[%emt 0:00:00]} Rfd2 {[%emt 0:06:24]} 48. Rc3 {[%emt 0:00:00]} Kg6 {[%emt 0:05:51]} 1/2-1/2

[Event "51st Rilton Cup 2023-24"]
[Site "Stockholm"]
[Date "2023.12.30"]
[Round "4.19"]
[White "Eilenberg, Jonas"]
[Black "Dhulipalla Bala Chandra Prasad"]
[Result "1/2-1/2"]
[ECO "C55"]
[WhiteElo "2318"]
[BlackElo "2396"]
[Annotator "ChessBase"]
[PlyCount "50"]
[EventDate "2023.12.27"]
[EventType "swiss"]
[EventCountry "SWE"]
[SourceTitle "playchess.com"]
[Source "ChessBase"]
[SourceQuality "1"]
[TimeControl "40/5400+30:1800+30"]

1. e4 {[%emt 0:05:16]} e5 {[%emt 0:05:22]} 2. Nf3 {[%emt 0:00:00]} Nc6 {[%emt 0:00:10]} 3. Bc4 {[%emt 0:00:00]} Nf6 {[%emt 0:00:05]} 4. d3 {[%emt 0:00:00]} Be7 {[%emt 0:02:57]} 5. O-O {[%emt 0:00:00]} O-O {[%emt 0:00:05]} 6. Re1 {[%emt 0:00:00]} d6 {[%emt 0:00:04]} 7. a3 {[%emt 0:00:00]} Nd7 {[%emt 0:06:02]} 8. Nbd2 {[%emt 0:00:00]} Kh8 {[%emt 0:01:23]} 9. Nf1 {[%emt 0:02:08]} Nb6 {[%emt 0:00:44]} 10. Ba2 {[%emt 0:00:56]} f5 {[%emt 0:01:29]} 11. exf5 {[%emt 0:00:11]} Bxf5 {[%emt 0:00:09]} 12. h3 {[%emt 0:00:14]} Bg6 {[%emt 0:12:20]} 13. Ng3 {[%emt 0:04:29]} Bf6 {[%emt 0:07:10]} 14. c3 {[%emt 0:16:04]} a5 {[%emt 0:13:28]} 15. Be3 {[%emt 0:02:59]} d5 {[%emt 0:07:29]} 16. Bc5 {[%emt 0:02:59]} Re8 {[%emt 0:00:34]} 17. Bxb6 {[%emt 0:00:22]} cxb6 {[%emt 0:00:02]} 18. Nh2 {[%emt 0:00:51]} Qd6 {[%emt 0:04:41]} 19. Ng4 {[%emt 0:03:15]} Rad8 {[%emt 0:08:29]} 20. Ne3 {[%emt 0:04:10]} Ne7 {[%emt 0:02:09]} 21. Qe2 {[%emt 0:05:22]} b5 {[%emt 0:02:51]} 22. Ng4 {[%emt 0:01:52]} Nc6 {[%emt 0:00:55]} 23. Ne3 {[%emt 0:01:32]} Ne7 {[%emt 0:00:02]} 24. Ng4 {[%emt 0:00:31]} Nc6 {[%emt 0:04:09]} 25. Ne3 {[%emt 0:00:27]} Ne7 {[%emt 0:10:43]} 1/2-1/2

[Event "51st Rilton Cup 2023-24"]
[Site "Stockholm"]
[Date "2023.12.30"]
[Round "4.20"]
[White "Ajay Santhosh Parvathareddy"]
[Black "Krishna C R G"]
[Result "0-1"]
[ECO "A80"]
[WhiteElo "2228"]
[BlackElo "2396"]
[Annotator "ChessBase"]
[PlyCount "70"]
[EventDate "2023.12.27"]
[EventType "swiss"]
[EventCountry "SWE"]
[SourceTitle "playchess.com"]
[Source "ChessBase"]
[SourceQuality "1"]
[TimeControl "40/5400+30:1800+30"]

1. d4 {[%emt 0:00:01]} f5 {[%emt 0:00:47]} 2. f3 {[%emt 0:00:19]} d5 {[%emt 0:02:22]} 3. Nc3 {[%emt 0:00:10]} Nf6 {[%emt 0:00:49]} 4. Bg5 {[%emt 0:01:39]} Be6 {[%emt 0:12:29]} 5. Qd3 {[%emt 0:07:38]} c6 {[%emt 0:13:42]} 6. Nh3 {[%emt 0:02:18]} g6 {[%emt 0:08:00]} 7. Qe3 {[%emt 0:17:53]} Qd6 {[%emt 0:03:40]} 8. Bf4 {[%emt 0:00:38]} Qd7 {[%emt 0:00:01]} 9. Ng5 {[%emt 0:00:59]} Bg8 {[%emt 0:02:18]} 10. Be5 {[%emt 0:01:06]} Bg7 {[%emt 0:00:33]} 11. h4 {[%emt 0:00:40]} h6 {[%emt 0:04:23]} 12. Nh3 {[%emt 0:00:04]} Bf7 {[%emt 0:00:53]} 13. Qd2 {[%emt 0:04:27]} Qd8 {[%emt 0:02:44]} 14. Nf2 {[%emt 0:06:31]} Nbd7 {[%emt 0:03:15]} 15. Bh2 {[%emt 0:00:10]} O-O {[%emt 0:02:58]} 16. Nd3 {[%emt 0:05:12]} c5 {[%emt 0:06:58]} 17. e3 {[%emt 0:00:20]} Rc8 {[%emt 0:15:15]} 18. O-O-O {[%emt 0:06:05]} c4 {[%emt 0:02:37]} 19. Ne5 {[%emt 0:00:57]} b5 {[%emt 0:00:01]} 20. Nxf7 {[%emt 0:06:08]} Rxf7 {[%emt 0:00:26]} 21. Nxb5 {[%emt 0:00:06]} Qb6 {[%emt 0:02:12]} 22. Nc3 {[%emt 0:01:10]} e6 {[%emt 0:00:01]} 23. Ne2 {[%emt 0:03:39]} Qa6 {[%emt 0:02:14]} 24. Nc3 {[%emt 0:05:44]} Bf8 {[%emt 0:01:07]} 25. Qe1 {[%emt 0:02:07]} Nb6 {[%emt 0:01:36]} 26. Be5 {[%emt 0:03:32]} Na4 {[%emt 0:03:36]} 27. h5 {[%emt 0:02:45]} g5 {[%emt 0:00:52]} 28. e4 {[%emt 0:01:35]} Bb4 {[%emt 0:05:11]} 29. Qe3 {[%emt 0:01:57]} f4 {[%emt 0:00:02]} 30. Bxf4 {[%emt 0:00:44]} gxf4 {[%emt 0:00:02]} 31. Qxf4 {[%emt 0:00:10]} Nxc3 {[%emt 0:00:13]} 32. Rh3 {[%emt 0:00:32]} Nxa2+ {[%emt 0:00:36]} 33. Kb1 {[%emt 0:00:06]} Nc3+ {[%emt 0:00:22]} 34. bxc3 {[%emt 0:00:04]} Bxc3 {[%emt 0:00:04]} 35. Rg3+ {[%emt 0:00:04]} Kh7 {[%emt 0:00:08]} 0-1

[Event "51st Rilton Cup 2023-24"]
[Site "Stockholm"]
[Date "2023.12.30"]
[Round "4.21"]
[White "Ornstein, Axel"]
[Black "Kavutskiy, Konstantin"]
[Result "0-1"]
[ECO "B44"]
[WhiteElo "2223"]
[BlackElo "2384"]
[Annotator "ChessBase"]
[PlyCount "62"]
[EventDate "2023.12.27"]
[EventType "swiss"]
[EventCountry "SWE"]
[SourceTitle "playchess.com"]
[Source "ChessBase"]
[SourceQuality "1"]
[TimeControl "40/5400+30:1800+30"]

1. e4 {[%emt 0:00:02]} c5 {[%emt 0:08:08]} 2. Nf3 {[%emt 0:00:07]} Nc6 {[%emt 0:00:24]} 3. d4 {[%emt 0:00:06]} cxd4 {[%emt 0:00:06]} 4. Nxd4 {[%emt 0:00:04]} e5 {[%emt 0:00:07]} 5. Nb5 {[%emt 0:07:27]} d6 {[%emt 0:00:35]} 6. Be3 {[%emt 0:00:18]} Be6 {[%emt 0:02:35]} 7. N5c3 {[%emt 0:00:48]} Nf6 {[%emt 0:02:20]} 8. Be2 {[%emt 0:00:15]} a6 {[%emt 0:02:02]} 9. a4 {[%emt 0:01:54]} Be7 {[%emt 0:00:32]} 10. O-O {[%emt 0:00:46]} Nb4 {[%emt 0:02:28]} 11. f4 {[%emt 0:02:56]} exf4 {[%emt 0:06:15]} 12. Bxf4 {[%emt 0:00:13]} d5 {[%emt 0:01:36]} 13. e5 {[%emt 0:00:22]} Ne4 {[%emt 0:05:28]} 14. Nxe4 {[%emt 0:06:09]} dxe4 {[%emt 0:00:06]} 15. Nd2 {[%emt 0:02:10]} Qb6+ {[%emt 0:07:40]} 16. Kh1 {[%emt 0:00:08]} Rd8 {[%emt 0:00:15]} 17. a5 {[%emt 0:02:50]} Qc6 {[%emt 0:01:26]} 18. c3 {[%emt 0:05:28]} Nd5 {[%emt 0:02:47]} 19. Qc2 {[%emt 0:04:40]} Nxf4 {[%emt 0:02:03]} 20. Rxf4 {[%emt 0:00:08]} Bg5 {[%emt 0:00:15]} 21. Raf1 {[%emt 0:00:04]} Bxf4 {[%emt 0:06:01]} 22. Rxf4 {[%emt 0:00:34]} Qc7 {[%emt 0:04:48]} 23. Rxe4 {[%emt 0:13:16]} Qxa5 {[%emt 0:02:03]} 24. Re3 {[%emt 0:08:26]} O-O {[%emt 0:03:18]} 25. h3 {[%emt 0:01:51]} Qc5 {[%emt 0:01:14]} 26. Nf1 {[%emt 0:00:33]} Bc4 {[%emt 0:02:24]} 27. Bxc4 {[%emt 0:08:40]} Qxc4 {[%emt 0:00:06]} 28. Ng3 {[%emt 0:00:07]} Qf4 {[%emt 0:01:55]} 29. Qe2 {[%emt 0:00:19]} Rfe8 {[%emt 0:01:13]} 30. Nh5 {[%emt 0:00:15]} Rd1+ {[%emt 0:00:57]} 31. Qxd1 {[%emt 0:00:15]} Qxe3 {[%emt 0:00:06]} 0-1

[Event "51st Rilton Cup 2023-24"]
[Site "Stockholm"]
[Date "2023.12.31"]
[Round "5.1"]
[White "Kulaots, Kaido"]
[Black "Sokolovsky, Yahli"]
[Result "1/2-1/2"]
[ECO "B90"]
[WhiteElo "2524"]
[BlackElo "2443"]
[Annotator "TA"]
[PlyCount "60"]
[EventDate "2023.12.27"]
[EventType "swiss"]
[EventCountry "SWE"]
[SourceTitle "playchess.com"]
[Source "ChessBase"]
[SourceQuality "1"]
[TimeControl "40/5400+30:1800+30"]

{[%evp 11,60,-22,10,0,20,30,43,0,0,0,0,-12,-13,-13,-16,-19,-19,-31,-11,-20,0,0,0,0,0,0,0,0,0,0,15,0,16,17,27,26,19,19,26,9,10,9,5,4,12,12,17,14,23,27,26]} 1. e4 {[%emt 0:00:01]} c5 {[%emt 0:00:05]} 2. Nf3 {[%emt 0:00:15]} d6 {[%emt 0:00:04]} 3. d4 {[%emt 0:00:05]} cxd4 {[%emt 0:00:03]} 4. Nxd4 {[%emt 0:00:03]} Nf6 {[%emt 0:00:06]} 5. Nc3 {[%emt 0:00:04]} a6 {[%emt 0:00:06]} 6. Rg1 {[%emt 0:00:05]} e5 {[%emt 0:00:18]} 7. Nb3 {[%emt 0:00:04] B90: Sicilian Najdorf: Unusual White 6th moves, 6 Be3 Ng4 and 6 Be3 e5.} h5 {[%emt 0:00:10]} 8. h3 {[%emt 0:04:01]} Be6 {[%emt 0:00:06]} 9. g4 {[%emt 0:07:06] White is slightly better.} hxg4 {[%emt 0:00:05]} 10. hxg4 {[%emt 0:00:03]} d5 {[%emt 0:00:12]} 11. g5 {[%emt 0:02:01]} Nxe4 {[%emt 0:01:11]} 12. Nxe4 {[%emt 0:00:15]} dxe4 {[%emt 0:00:04]} 13. Qxd8+ {[%emt 0:00:10]} Kxd8 {[%emt 0:00:03]} 14. Bg2 {[%emt 0:00:57]} Bf5 {[%emt 0:13:04]} 15. Be3 {[%emt 0:07:31]} Nd7 {[%emt 0:00:16]} 16. Nd2 {[%emt 0:04:22] [#]} Rh4 $146 {[%emt 0:11:57]} ({Predecessor:} 16... Kc7 17. Nxe4 Bb4+ 18. c3 Be7 19. O-O-O Bg6 20. Rd5 Rad8 21. Rgd1 Bf5 22. b4 Rh2 {1-0 Petri,K (2326)-Feldtmann,T (2215) Hessenliga 0809 2008 (8.1)}) 17. O-O-O {[%emt 0:07:22]} Rc8 {[%emt 0:07:07]} 18. Rh1 {[%emt 0:02:00]} Rxh1 {[%emt 0:00:06]} 19. Bxh1 {[%emt 0:06:04]} Bg4 {[%emt 0:06:51]} 20. Rg1 {[%emt 0:01:07]} Be6 {[%emt 0:00:13]} 21. Nxe4 {[%emt 0:01:32]} Kc7 {[%emt 0:04:37]} 22. f4 {[%emt 0:07:41]} f5 {[%emt 0:06:42]} 23. gxf6 {[%emt 0:02:56]} gxf6 {[%emt 0:00:05]} 24. fxe5 {[%emt 0:01:36]} fxe5 {[%emt 0:01:25]} 25. b3 {[%emt 0:09:03]} Ba3+ {[%emt 0:02:11]} 26. Kd2 {[%emt 0:00:22]} Rh8 {[%emt 0:04:26]} 27. Bf3 {[%emt 0:09:13]} Rh3 {[%emt 0:03:35]} 28. Bg4 {[%emt 0:08:19]} Bxg4 {[%emt 0:11:56]} 29. Rxg4 {[%emt 0:00:16]} Bc1+ {[%emt 0:02:19][%mdl 64] [#] Deflection} 30. Kxc1 {[%emt 0:00:07]} Rxe3 {[%emt 0:00:04] Weighted Error Value: White=0.04 (flawless) /Black=0.08 (flawless)} 1/2-1/2

[Event "51st Rilton Cup 2023-24"]
[Site "Stockholm"]
[Date "2023.12.31"]
[Round "5.2"]
[White "Blomqvist, Erik"]
[Black "Chasin, Nico"]
[Result "1-0"]
[ECO "C43"]
[WhiteElo "2521"]
[BlackElo "2444"]
[Annotator "TA"]
[PlyCount "63"]
[EventDate "2023.12.27"]
[EventType "swiss"]
[EventCountry "SWE"]
[SourceTitle "playchess.com"]
[Source "ChessBase"]
[SourceQuality "1"]
[TimeControl "40/5400+30:1800+30"]

{[%evp 9,63,12,14,6,10,15,12,14,13,18,13,5,22,42,99,93,98,86,150,141,134,133,145,141,143,76,117,97,157,125,179,149,245,239,236,232,243,245,233,203,195,192,180,162,164,163,247,248,390,383,385,398,399,371,377,379]} 1. e4 {[%emt 0:00:05] Gofshtein,Leonid D} e5 {[%emt 0:15:45]} 2. Nf3 {[%emt 0:01:09]} Nf6 {[%emt 0:00:17]} 3. d4 {[%emt 0:01:46]} Nxe4 {[%emt 0:00:35]} 4. Bd3 {[%emt 0:00:07]} Nc6 {[%emt 0:00:26]} 5. Nxe5 {[%emt 0:01:53]} Nxe5 {[%emt 0:06:17]} 6. dxe5 {[%emt 0:00:21] C43: Petroff Defence: 3 d4.} Nc5 {[%emt 0:00:22]} 7. Bc4 {[%emt 0:00:30]} d6 {[%emt 0:01:20]} 8. Qf3 {[%emt 0:01:39][%csl Gc4][%cal Rf3f7] [#] The position is equal.} Ne6 {[%emt 0:02:53]} 9. exd6 {[%emt 0:01:08]} Bxd6 {[%emt 0:00:09]} 10. Be3 {[%emt 0:03:15]} O-O {[%emt 0:02:15]} 11. Nd2 {[%emt 0:09:11] [#]} Qh4 $146 {[%emt 0:18:23]} (11... f5 $14) ({Predecessor:} 11... Be5 12. O-O-O Qe7 13. Ne4 c6 14. Rhe1 a5 15. c3 Re8 16. Kb1 b5 17. Bd3 g6 {½-½ Gofshtein,L (2498)-Rozentalis,E (2620) ISR-chT playoff 2002}) 12. g3 $16 {[%emt 0:09:49]} Qe7 {[%emt 0:04:00]} 13. O-O-O {[%emt 0:03:05]} Bd7 {[%emt 0:02:27]} (13... a5 $142) 14. Qxb7 {[%emt 0:07:00]} Rab8 {[%emt 0:08:31]} 15. Qa6 {[%emt 0:04:59] White has more active pieces.} (15. Qxa7 Bc6 16. Qa5 Bxh1 17. Rxh1 Nc5 $11) 15... Bc8 {[%emt 0:00:25]} 16. Qa5 {[%emt 0:07:09]} Bb4 {[%emt 0:01:47]} 17. Qh5 {[%emt 0:20:35]} (17. Qxa7 $142 Bd7 18. Rhe1) 17... Bb7 {[%emt 0:03:01]} 18. Bd5 {[%emt 0:01:55]} (18. Bd3 g6 19. Qe2 Bxh1 20. Rxh1 Rfd8 $17) 18... Ba6 {[%emt 0:01:25]} ({Better is} 18... Bxd5 19. Qxd5 Rfd8) 19. Ne4 {[%emt 0:03:19]} (19. Bxa7 Rb5 20. a4 Bxd2+ 21. Rxd2 Ra5 $11) 19... c6 {[%emt 0:03:58] [#]} 20. Bb3 $1 $18 {[%emt 0:01:59]} (20. Bxc6 $2 Ba3 21. bxa3 Qxa3+ 22. Kd2 Qb4+ 23. c3 Rfd8+ 24. Ke1 Qc4 25. Rxd8+ Nxd8 $19) ({Much less strong is} 20. Bxe6 $6 Qxe6 21. Ng5 Qf5 $16) 20... c5 {[%emt 0:01:39]} (20... Rb5 $16 {might work better.} 21. Qf3 Re5) 21. c3 {[%emt 0:03:35]} c4 {[%emt 0:03:11]} 22. Bc2 $40 {[%emt 0:00:09][%cal Oe4f6][%mdl 128] Nf6+! would kill now. White goes for the king.} f5 {[%emt 0:00:02]} 23. Ng5 {[%emt 0:02:43]} Nxg5 {[%emt 0:05:05]} 24. Qxg5 {[%emt 0:00:04]} ({And not} 24. Bxg5 Qb7 25. Rhe1 (25. cxb4 $2 {loses.} Qxb4 26. Rd5 Qxb2+ 27. Kd1 c3 $19) 25... Ba5 $11) 24... Qxg5 {[%emt 0:00:34]} 25. Bxg5 {[%emt 0:00:04]} Bc5 {[%emt 0:00:10]} 26. Be3 {[%emt 0:00:52]} Bxe3+ {[%emt 0:00:28]} 27. fxe3 {[%emt 0:00:03]} Rb5 {[%emt 0:00:26]} (27... Bc8 $142 28. Rd6 Rb5) 28. Rd7 {[%emt 0:01:42]} Rfb8 {[%emt 0:01:19]} (28... Rf7 {keeps fighting.}) 29. Rxa7 {[%emt 0:02:40] White is winning.} Bb7 {[%emt 0:00:21]} 30. Rd1 {[%emt 0:01:30]} Be4 {[%emt 0:01:16]} 31. Bxe4 {[%emt 0:01:05]} fxe4 {[%emt 0:00:06]} 32. Rd2 {[%emt 0:00:16] Weighted Error Value: White=0.07 (flawless) /Black=0.26 (precise)} 1-0